bitfinex-derivatives/quotes_BTCF0:USTF0_20251119
["timestamp","ask_amount","ask_price","bid_price","bid_amount"]
[1763580607712,0.00236655,89000.0,88999.0,0.15654047]
[1763580611422,0.00016852,89000.0,88999.0,0.15654047]
[1763580611618,0.38336,89012.0,89011.0,0.1557926]
[1763580611820,0.38555803,89012.0,89011.0,0.15652527]
[1763580612020,0.02475803,89012.0,89011.0,0.15652527]
[1763580612216,0.3608,89029.0,89026.0,0.1684236]
[1763580612526,0.38336,89029.0,89028.0,0.04405267]
[1763580612822,0.36299803,89029.0,89028.0,0.04405267]
[1763580613223,0.00016852,89036.0,89035.0,0.1557623]
[1763580613423,0.00016852,89036.0,89035.0,0.15649497]
[1763580613616,0.00236655,89036.0,89035.0,0.15649497]
[1763580613816,0.00391457,89036.0,89035.0,0.15649497]
[1763580614016,0.00171654,89036.0,89035.0,0.15649497]
[1763580614324,0.00491457,89036.0,89035.0,0.15649497]
[1763580616232,0.00391457,89036.0,89035.0,0.15649497]
[1763580616531,0.00591457,89036.0,89035.0,0.15649497]
[1763580616830,0.00391457,89036.0,89035.0,0.15649497]
[1763580617024,0.00171654,89036.0,89035.0,0.15649497]
[1763580617425,0.00171654,89036.0,89035.0,0.18662562]
[1763580618425,0.00028076,89046.0,89045.0,0.1557497]
[1763580618627,0.00028076,89046.0,89045.0,0.15648237]
[1763580619328,0.04787879,89046.0,89045.0,0.04405267]
[1763580619827,0.04887879,89046.0,89045.0,0.04405267]
[1763580620021,0.04887879,89046.0,89032.0,0.04276723]
[1763580620022,0.1578435,89034.0,89033.0,0.40412]
[1763580620222,0.04759803,89034.0,89033.0,0.40485267]
[1763580620530,0.04759803,89034.0,89033.0,0.04405267]
[1763580620726,0.40839803,89034.0,89033.0,0.04405267]
[1763580621126,0.40839803,89034.0,89033.0,0.00073267]
[1763580621630,0.40839803,89034.0,89033.0,0.04405267]
[1763580622534,0.38555803,89034.0,89033.0,0.04405267]
[1763580623335,0.00219803,89034.0,89033.0,0.04405267]
[1763580623532,0.001,89034.0,89033.0,0.40485267]
[1763580623834,0.001,89034.0,89033.0,0.04405267]
[1763580624136,0.00319803,89034.0,89033.0,0.04405267]
[1763580624529,0.00219803,89034.0,89033.0,0.04405267]
[1763580624728,0.00319803,89034.0,89033.0,0.04405267]
[1763580625226,0.001,89034.0,89033.0,0.04405267]
[1763580625737,0.00319803,89034.0,89033.0,0.04405267]
[1763580626131,0.00319803,89034.0,89033.0,0.00073267]
[1763580626132,0.52158163,89034.0,89033.0,0.00073267]
[1763580626325,0.40913803,89034.0,89033.0,0.04373267]
[1763580626638,0.00319803,89034.0,89033.0,0.40453267]
[1763580627637,0.3608,89042.0,89033.0,0.40453267]
[1763580627638,0.3608,89042.0,89041.0,0.1554347]
[1763580627839,0.36299803,89042.0,89041.0,0.15616737]
[1763580629135,0.40818803,89042.0,89041.0,0.00073267]
[1763580629335,0.40918803,89042.0,89041.0,0.00073267]
[1763580629839,0.40818803,89042.0,89041.0,0.00073267]
[1763580630031,0.40918803,89042.0,89041.0,0.00073267]
[1763580630431,0.40818803,89042.0,89041.0,0.00073267]
[1763580630733,0.40818803,89042.0,89041.0,0.04373267]
[1763580630734,0.36499803,89042.0,89041.0,0.04373267]
[1763580630933,0.002,89042.0,89041.0,0.04373267]
[1763580631336,0.002,89042.0,89041.0,0.40453267]
[1763580632337,0.002,89042.0,89041.0,0.50616737]
[1763580632743,0.02647803,89042.0,89041.0,0.50616737]
[1763580633039,0.00319803,89042.0,89041.0,0.50616737]
[1763580633241,0.001,89042.0,89041.0,0.50616737]
[1763580633636,0.001,89042.0,89041.0,0.15616737]
[1763580636146,0.001,89042.0,89041.0,0.18630126]
[1763580636347,0.001,89042.0,89041.0,0.15616737]
[1763580637232,0.3608,89070.0,89053.0,0.1555796]
[1763580637432,0.10856,89068.0,89060.0,0.1555708]
[1763580637639,0.38408,89061.0,89060.0,0.15630347]
[1763580637842,0.3608,89061.0,89060.0,0.15630347]
[1763580638238,0.10856,89068.0,89067.0,0.1555619]
[1763580638445,0.10856,89068.0,89067.0,0.15629457]
[1763580638641,0.13184,89068.0,89067.0,0.15629457]
[1763580639249,0.15296,89068.0,89067.0,0.15629457]
[1763580639440,0.15515803,89068.0,89067.0,0.15629457]
[1763580639940,0.04859803,89068.0,89067.0,0.15629457]
[1763580640534,0.02747803,89068.0,89067.0,0.15629457]
[1763580641134,0.02947803,89068.0,89067.0,0.15629457]
[1763580641338,0.05059803,89068.0,89067.0,0.15629457]
[1763580642438,0.004,89068.0,89067.0,0.15629457]
[1763580643342,0.002,89068.0,89067.0,0.15629457]
[1763580643546,0.004,89068.0,89067.0,0.15629457]
[1763580643946,0.00419803,89068.0,89067.0,0.15629457]
[1763580644154,0.00519803,89068.0,89067.0,0.15629457]
[1763580644352,0.00419803,89068.0,89067.0,0.15629457]
[1763580644648,0.16099873,89068.0,89067.0,0.04389267]
[1763580644857,0.16099873,89068.0,89045.0,0.00016852]
[1763580644858,0.1568187,89054.0,89045.0,0.03031946]
[1763580645146,0.01348,89064.0,89045.0,0.03031946]
[1763580645147,0.40739803,89053.0,89052.0,0.04316]
[1763580645352,0.40739803,89053.0,89052.0,0.04389267]
[1763580646252,0.00219803,89053.0,89052.0,0.04389267]
[1763580647151,0.1124011,89068.0,89052.0,0.04389267]
[1763580647152,0.4052,89070.0,89069.0,0.1342194]
[1763580647455,0.51591803,89070.0,89069.0,0.13495207]
[1763580648144,0.49479803,89070.0,89069.0,0.15629207]
[1763580648350,0.51591803,89070.0,89069.0,0.15629207]
[1763580648546,0.51691803,89070.0,89069.0,0.15629207]
[1763580648867,0.53039803,89070.0,89069.0,0.11313207]
[1763580649053,0.53239803,89070.0,89069.0,0.13495207]
[1763580650951,0.51891803,89070.0,89069.0,0.15629207]
[1763580651552,0.49779803,89070.0,89069.0,0.15629207]
[1763580652358,0.49779803,89070.0,89069.0,0.00073267]
[1763580652359,0.51891803,89070.0,89069.0,0.00073267]
[1763580652560,0.51691803,89070.0,89069.0,0.00073267]
[1763580652749,0.51791803,89070.0,89069.0,0.00073267]
[1763580655966,0.51791803,89070.0,89069.0,0.04389267]
[1763580656462,0.51791803,89070.0,89069.0,0.02255267]
[1763580656866,0.51791803,89070.0,89069.0,0.00073267]
[1763580657263,0.0444,89062.0,89061.0,0.1555695]
[1763580657467,0.04659803,89062.0,89061.0,0.15630217]
[1763580658365,0.04759803,89062.0,89061.0,0.18645311]
[1763580658756,0.04859803,89062.0,89061.0,0.18645311]
[1763580659257,0.04859803,89062.0,89061.0,0.15630217]
[1763580660661,0.04859803,89062.0,89061.0,0.02255267]
[1763580660861,0.04859803,89062.0,89061.0,0.13496217]
[1763580661263,0.04859803,89062.0,89061.0,0.00073267]
[1763580661264,0.40939803,89062.0,89061.0,0.00073267]
[1763580661458,0.0444,89057.0,89056.0,0.03020698]
[1763580661768,0.15901253,89057.0,89056.0,0.03093965]
[1763580661967,0.15901253,89057.0,89051.0,0.04017852]
[1763580661968,0.15901253,89057.0,89055.0,0.03020698]
[1763580662161,0.04466,89050.0,89049.0,0.03020698]
[1763580662361,0.157096,89040.0,89039.0,0.04017852]
[1763580662562,0.157096,89040.0,89020.0,0.17049451]
[1763580662563,0.1124423,89035.0,89034.0,0.1124431]
[1763580662762,0.04685803,89035.0,89034.0,0.11317577]
[1763580663364,0.1571074,89031.0,89030.0,0.04017852]
[1763580663561,0.1571074,89031.0,89028.0,0.04017852]
[1763580663562,0.1124499,89029.0,89028.0,0.04017852]
[1763580663773,0.04466,89027.0,89026.0,0.00016842]
[1763580664069,0.04685803,89027.0,89026.0,0.00016842]
[1763580664862,0.15537803,89027.0,89026.0,0.00116842]
[1763580665366,0.15537803,89027.0,89026.0,0.00016842]
[1763580665568,0.15537803,89027.0,89026.0,0.00116842]
[1763580665962,0.15537803,89027.0,89026.0,0.00290109]
[1763580666167,0.15537803,89027.0,89026.0,0.00216842]
[1763580667566,0.15637803,89027.0,89026.0,0.00116842]
[1763580667867,0.15637803,89027.0,89026.0,0.00016842]
[1763580667868,0.15737803,89027.0,89026.0,0.00016842]
[1763580668065,0.15637803,89027.0,89026.0,0.00016842]
[1763580668267,0.25075197,89027.0,89026.0,0.00016842]
[1763580668968,0.04466,89014.0,89013.0,0.1645389]
[1763580669262,0.04466,89014.0,89013.0,0.13503277]
[1763580669263,0.24875197,89014.0,89013.0,0.13503277]
[1763580669463,0.24875197,89014.0,89013.0,0.15807277]
[1763580670670,0.24875197,89014.0,89013.0,0.18831157]
[1763580670871,0.09557197,89014.0,89013.0,0.18831157]
[1763580671068,0.09337394,89014.0,89013.0,0.15807277]
[1763580671260,0.00016851,89022.0,89021.0,0.15733]
[1763580671565,0.00236654,89022.0,89021.0,0.51886267]
[1763580671768,0.04702654,89022.0,89021.0,0.00073267]
[1763580672171,0.15554654,89022.0,89021.0,0.00073267]
[1763580672977,0.04466,89014.0,89013.0,0.001]
[1763580673275,0.15537803,89014.0,89013.0,0.11420277]
[1763580673478,0.15537803,89014.0,89013.0,0.13603277]
[1763580673778,0.15537803,89014.0,89013.0,0.00173267]
[1763580673972,0.1124701,89013.0,89007.0,7.985e-05]
[1763580674179,0.15933443,89008.0,89007.0,0.00081252]
[1763580675375,0.04685803,89008.0,89007.0,0.00081252]
[1763580675966,0.04685803,89008.0,89007.0,7.985e-05]
[1763580676166,0.04685803,89008.0,88989.0,0.04017852]
[1763580676167,0.1124912,88997.0,88995.0,0.1124924]
[1763580676367,0.1124912,88997.0,88995.0,0.11322507]
[1763580676368,0.15537803,88996.0,88995.0,0.11322507]
[1763580676568,0.04466,88991.0,88990.0,0.03010625]
[1763580676773,0.04466,88991.0,88985.0,0.04017852]
[1763580676774,0.04466,88986.0,88985.0,0.1125043]
[1763580676973,0.15541803,88986.0,88985.0,0.11323697]
[1763580677475,0.15549788,88986.0,88985.0,0.00073267]
[1763580678181,0.15549788,88986.0,88985.0,0.00173267]
[1763580678482,0.15549788,88986.0,88985.0,0.00273267]
[1763580678885,0.26800208,88986.0,88985.0,0.00273267]
[1763580679679,0.15549788,88986.0,88985.0,0.00273267]
[1763580680081,0.15549788,88986.0,88985.0,0.02456267]
[1763580680772,0.15549788,88986.0,88985.0,0.04760267]
[1763580680973,0.00227788,88986.0,88985.0,0.04760267]
[1763580681581,0.11083788,88986.0,88985.0,0.04760267]
[1763580682079,0.13299788,88986.0,88985.0,0.04760267]
[1763580683775,0.15549788,88986.0,88985.0,0.04760267]
[1763580684970,0.04693788,88986.0,88985.0,0.04760267]
[1763580685586,0.02334788,88986.0,88985.0,0.04760267]
[1763580686284,0.04468788,88986.0,88985.0,0.00273267]
[1763580686480,0.04468788,88986.0,88985.0,0.04906267]
[1763580687589,0.04468788,88986.0,88985.0,0.00273267]
[1763580688893,0.04468788,88986.0,88985.0,0.002]
[1763580690188,0.04468788,88986.0,88985.0,0.00273267]
[1763580690375,0.04468788,88986.0,88985.0,0.04906267]
[1763580690579,0.00227788,88986.0,88985.0,0.04906267]
[1763580690982,0.00227788,88986.0,88985.0,0.04806267]
[1763580691184,0.00327788,88986.0,88985.0,0.04706267]
[1763580691378,0.00427788,88986.0,88985.0,0.07717279]
[1763580691578,0.04668788,88986.0,88985.0,0.07717279]
[1763580691779,0.02547788,88986.0,88985.0,0.07717279]
[1763580691986,0.02547788,88986.0,88985.0,0.04706267]
[1763580691987,0.04678788,88986.0,88985.0,0.04706267]
[1763580693290,0.04833765,88986.0,88985.0,0.07717279]
[1763580693487,0.04833765,88986.0,88985.0,0.43797279]
[1763580693691,0.04833765,88986.0,88985.0,0.40786267]
[1763580693986,0.00162962,88986.0,88985.0,0.44804119]
[1763580694190,0.00162962,88986.0,88985.0,0.40786267]
[1763580694382,0.10876851,88994.0,88993.0,0.04507]
[1763580694582,0.04687654,88994.0,88993.0,0.40660267]
[1763580694984,0.04687654,88994.0,88993.0,0.43678836]
[1763580695192,0.04687654,88994.0,88993.0,0.40660267]
[1763580695688,0.04687654,88994.0,88993.0,0.0759944]
[1763580695993,0.04687654,88994.0,88993.0,0.04580267]
[1763580696692,0.04787654,88994.0,88993.0,0.00073267]
[1763580696887,0.16037064,88994.0,88993.0,0.00073267]
[1763580697093,0.04887654,88994.0,88993.0,0.00073267]
[1763580697482,0.04887654,88994.0,88993.0,0.03093411]
[1763580697792,0.04887654,88994.0,88993.0,0.00073267]
[1763580697979,0.04887654,88994.0,88993.0,0.03093411]
[1763580698179,0.04887654,88994.0,88993.0,0.04580267]
[1763580699084,0.00436654,88994.0,88993.0,0.40660267]
[1763580699290,0.04887654,88994.0,88993.0,0.40660267]
[1763580699690,0.04887654,88994.0,88993.0,0.44689014]
[1763580700094,0.02887654,88994.0,88993.0,0.08609014]
[1763580700286,0.02887654,88994.0,88993.0,0.00073267]
[1763580701487,0.1124922,88996.0,88992.0,0.04028747]
[1763580701488,0.1570054,88993.0,88992.0,0.04028747]
[1763580701794,0.1570168,88984.0,88983.0,0.03025309]
[1763580701986,0.6263768,88984.0,88983.0,0.03025309]
[1763580702193,0.6263768,88984.0,88983.0,0.03245112]
[1763580702393,0.6263768,88984.0,88983.0,0.00219803]
[1763580702889,0.51387,88984.0,88983.0,0.04726803]
[1763580703086,0.15307,88984.0,88983.0,0.04726803]
[1763580703288,0.15307,88984.0,88983.0,0.0875555]
[1763580703487,0.15307,88984.0,88983.0,0.04726803]
[1763580703995,0.15307,88984.0,88983.0,0.02523803]
[1763580704290,0.15307,88984.0,88983.0,0.00219803]
[1763580704491,0.2655768,88984.0,88983.0,0.00219803]
[1763580704892,0.2655768,88984.0,88977.0,0.06053358]
[1763580704893,0.1570193,88982.0,88981.0,0.04028747]
[1763580705202,0.0132,88983.0,88977.0,0.00016851]
[1763580705203,0.04451,88978.0,88977.0,0.00016851]
[1763580710988,0.112513,88980.0,88966.0,0.00028101]
[1763580710989,0.04451,88970.0,88969.0,0.03031129]
[1763580711296,0.04451,88968.0,88967.0,0.03031129]
[1763580711496,0.04451,88968.0,88967.0,0.03250932]
[1763580712303,0.04451,88968.0,88967.0,0.03031129]
[1763580712505,0.04451,88968.0,88967.0,0.03250932]
[1763580712688,0.04451,88968.0,88967.0,0.05554932]
[1763580712894,0.04451,88968.0,88967.0,0.07757932]
[1763580713195,0.15311,88968.0,88967.0,0.04726803]
[1763580713397,0.04351,88968.0,88967.0,0.04726803]
[1763580713594,0.15211,88968.0,88967.0,0.04726803]
[1763580714099,0.264637,88968.0,88967.0,0.04726803]
[1763580714299,0.264637,88968.0,88967.0,0.07852833]
[1763580714500,0.264637,88968.0,88967.0,0.03345833]
[1763580716193,0.264637,88968.0,88967.0,0.05649833]
[1763580716501,0.15211,88968.0,88967.0,0.05649833]
[1763580716696,0.15211,88968.0,88967.0,0.07852833]
[1763580718302,0.04351,88968.0,88967.0,0.07852833]
[1763580718505,0.15211,88968.0,88967.0,0.07852833]
[1763580718805,0.04351,88968.0,88967.0,0.07852833]
[1763580719200,0.15211,88968.0,88967.0,0.04826803]
[1763580719905,0.264637,88968.0,88967.0,0.04826803]
[1763580720603,0.277737,88968.0,88967.0,0.00319803]
[1763580720803,0.277737,88968.0,88966.0,1.01e-06]
[1763580720804,0.638537,88968.0,88966.0,1.01e-06]
[1763580721104,0.04214,88960.0,88959.0,0.00016851]
[1763580721305,0.04214,88960.0,88930.0,0.26811162]
[1763580721306,0.04214,88948.0,88947.0,0.05804]
[1763580721499,0.04214,88948.0,88931.0,0.44115705]
[1763580721500,0.1546974,88944.0,88938.0,0.07333507]
[1763580721703,0.1546974,88944.0,88938.0,0.01297]
[1763580721903,0.1547037,88939.0,88938.0,0.01297]
[1763580722203,0.04214,88929.0,88928.0,0.03602]
[1763580722405,0.04214,88929.0,88928.0,0.05932]
[1763580722406,0.14974,88929.0,88928.0,0.05932]
[1763580722702,0.04014,88927.0,88925.0,0.1125806]
[1763580722900,0.03922042,88927.0,88925.0,0.1125806]
[1763580723107,0.05743258,88927.0,88926.0,0.04882916]
[1763580723300,0.16603258,88927.0,88926.0,0.04882916]
[1763580723496,0.16603258,88927.0,88926.0,0.00247916]
[1763580723695,0.16603258,88927.0,88926.0,0.00028113]
[1763580723696,0.16503258,88927.0,88926.0,0.00028113]
[1763580723916,0.16503258,88927.0,88926.0,0.00128113]
[1763580724115,0.16503258,88927.0,88926.0,0.04763113]
[1763580725223,0.16503258,88927.0,88926.0,0.04982916]
[1763580725723,0.16503258,88927.0,88926.0,0.04882916]
[1763580727315,0.14586042,88927.0,88926.0,0.04882916]
[1763580727810,0.18175944,88927.0,88926.0,0.04882916]
[1763580728622,0.07311944,88927.0,88926.0,0.04882916]
[1763580728927,8.042e-05,88927.0,88926.0,0.04882916]
[1763580729326,0.00016862,88947.0,88946.0,0.1589048]
[1763580729624,0.10880862,88947.0,88946.0,0.16110283]
[1763580729924,0.00016862,88947.0,88946.0,0.16110283]
[1763580730315,0.00022087,88947.0,88946.0,0.16110283]
[1763580731229,0.112532,88965.0,88956.0,0.1588922]
[1763580731429,0.46944,88957.0,88956.0,0.16109023]
[1763580732514,0.48681,88957.0,88956.0,0.16109023]
[1763580732727,0.48781,88957.0,88956.0,0.16109023]
[1763580732923,0.47044,88957.0,88956.0,0.16109023]
[1763580733122,0.3618,88957.0,88956.0,0.16109023]
[1763580733323,0.001,88957.0,88956.0,0.16109023]
[1763580733634,0.10880862,88965.0,88964.0,0.1588821]
[1763580733835,0.3608,88975.0,88974.0,0.1588694]
[1763580734123,0.3608,88975.0,88974.0,0.16106743]
[1763580735221,0.3618,88975.0,88974.0,0.16106743]
[1763580735424,0.37934,88975.0,88974.0,0.16106743]
[1763580735728,0.03508,88975.0,88974.0,0.16106743]
[1763580735924,0.10864,88977.0,88976.0,0.04635]
[1763580736229,0.03524862,88983.0,88982.0,0.04635]
[1763580736428,0.14388862,88983.0,88982.0,0.00219803]
[1763580737028,0.14388862,88983.0,88982.0,0.02524803]
[1763580737521,0.14388862,88983.0,88982.0,0.04854803]
[1763580737924,0.01770862,88983.0,88982.0,0.04854803]
[1763580738127,0.00016862,88983.0,88982.0,0.04854803]
[1763580738524,0.37834,89003.0,89000.0,0.01364]
[1763580738725,0.01754,89003.0,89002.0,0.16103203]
[1763580738916,0.12614,89003.0,89002.0,0.04854803]
[1763580739114,0.00028088,89006.0,89005.0,0.04635]
[1763580739319,0.00028088,89006.0,89005.0,0.04854803]
[1763580740520,0.03536088,89006.0,89005.0,0.04854803]
[1763580741329,0.14983988,89006.0,89005.0,0.04854803]
[1763580741528,0.03736088,89006.0,89005.0,0.04854803]
[1763580741724,0.03536088,89006.0,89005.0,0.04854803]
[1763580741929,0.00128088,89006.0,89005.0,0.04854803]
[1763580742328,0.00028088,89006.0,89005.0,0.04854803]
[1763580742525,0.00128088,89006.0,89005.0,0.04854803]
[1763580743124,0.00028088,89006.0,89005.0,0.04854803]
[1763580744128,0.03536088,89006.0,89005.0,0.04854803]
[1763580745432,0.00028088,89006.0,89005.0,0.04854803]
[1763580745632,0.03536088,89006.0,89005.0,0.04854803]
[1763580745830,0.03636088,89006.0,89005.0,0.04854803]
[1763580747039,0.03736088,89006.0,89005.0,0.04854803]
[1763580747628,0.00228088,89006.0,89005.0,0.04854803]
[1763580748230,0.00128088,89006.0,89005.0,0.04854803]
[1763580748430,0.00028088,89006.0,89005.0,0.04854803]
[1763580748636,0.03636088,89006.0,89005.0,0.04854803]
[1763580748834,0.03636088,89006.0,89005.0,0.16102823]
[1763580749226,0.03636088,89006.0,89005.0,0.04854803]
[1763580749431,0.03536088,89006.0,89005.0,0.04854803]
[1763580750135,0.03636088,89006.0,89005.0,0.04854803]
[1763580750732,0.03636088,89006.0,89005.0,0.00219803]
[1763580751338,0.03636088,89006.0,89005.0,0.04567803]
[1763580751535,0.03536088,89006.0,89005.0,0.04567803]
[1763580751733,0.00128088,89006.0,89005.0,0.04567803]
[1763580752139,0.00028088,89006.0,89005.0,0.04567803]
[1763580752341,0.00128088,89006.0,89005.0,0.04567803]
[1763580753029,0.00228088,89006.0,89005.0,0.04567803]
[1763580753230,0.11084088,89006.0,89005.0,0.04567803]
[1763580753742,0.10984088,89006.0,89005.0,0.04567803]
[1763580754332,0.00128088,89006.0,89005.0,0.04567803]
[1763580754531,0.00016862,89014.0,89005.0,0.04567803]
[1763580754532,0.00016862,89014.0,89013.0,0.0444]
[1763580754844,0.00016862,89014.0,89013.0,0.04659803]
[1763580755744,0.00116862,89014.0,89013.0,0.04659803]
[1763580756339,0.03880862,89014.0,89013.0,0.04659803]
[1763580757138,0.03880862,89014.0,89013.0,0.00219803]
[1763580757643,0.03880862,89014.0,89002.0,0.0444]
[1763580757644,0.01882,89003.0,89002.0,0.0444]
[1763580757846,0.39844,89003.0,89002.0,0.00219803]
[1763580758146,0.39844,89003.0,89002.0,0.04659803]
[1763580758846,0.37962,89003.0,89002.0,0.04659803]
[1763580759344,0.39844,89003.0,89002.0,0.04659803]
[1763580759543,0.1501291,88998.0,88997.0,0.00016862]
[1763580759741,0.51312709,88998.0,88997.0,0.00016862]
[1763580760138,0.62168709,88998.0,88997.0,0.00016862]
[1763580760736,0.50919799,88998.0,88997.0,0.00016862]
[1763580761141,0.50919799,88998.0,88997.0,0.00090132]
[1763580761142,0.40063799,88998.0,88997.0,0.00090132]
[1763580761346,0.50919799,88998.0,88997.0,0.04530132]
[1763580761641,0.51019799,88998.0,88997.0,0.04530132]
[1763580762245,0.62268709,88998.0,88997.0,0.04530132]
[1763580763241,0.62268709,88998.0,88997.0,0.00016862]
[1763580764838,0.03764,88984.0,88976.0,0.04024043]
[1763580765045,0.51315359,88977.0,88976.0,0.0007327]
[1763580765353,0.03764,88970.0,88969.0,0.1569254]
[1763580765547,0.03764,88970.0,88969.0,0.1576581]
[1763580765548,0.03983799,88970.0,88969.0,0.1576581]
[1763580766147,0.03883799,88970.0,88969.0,0.1576581]
[1763580766951,0.00219799,88970.0,88969.0,0.1586581]
[1763580767153,0.00119799,88970.0,88969.0,0.1586581]
[1763580767544,0.01901799,88970.0,88969.0,0.1586581]
[1763580767742,0.01901799,88970.0,88969.0,0.1596581]
[1763580769148,0.03683799,88970.0,88969.0,0.0471327]
[1763580770543,0.00119799,88970.0,88969.0,0.0471327]
[1763580770744,0.10975799,88970.0,88969.0,0.0471327]
[1763580771157,0.00119799,88970.0,88969.0,0.0471327]
[1763580771354,0.3608,88977.0,88976.0,0.0444]
[1763580771657,0.3608,88977.0,88976.0,0.1586496]
[1763580771658,0.361998,88977.0,88976.0,0.1586496]
[1763580772549,0.001198,88977.0,88976.0,0.1596496]
[1763580773148,0.397638,88977.0,88976.0,0.0471327]
[1763580773350,0.397638,88977.0,88976.0,0.0481327]
[1763580774546,0.397638,88977.0,88976.0,0.0270227]
[1763580774958,0.397638,88977.0,88976.0,0.0037327]
[1763580776858,0.397638,88977.0,88976.0,0.002]
[1763580780252,0.1481683,88967.0,88966.0,0.00028101]
[1763580780456,0.6187663,88967.0,88966.0,0.00028101]
[1763580781462,0.6187663,88967.0,88966.0,0.00128101]
[1763580781858,0.506238,88967.0,88966.0,0.04510101]
[1763580782062,0.397638,88967.0,88966.0,0.04510101]
[1763580782360,0.507238,88967.0,88966.0,0.00128101]
[1763580782857,0.507238,88967.0,88966.0,0.00028101]
[1763580783060,0.508238,88967.0,88966.0,0.00028101]
[1763580783663,0.507238,88967.0,88966.0,0.00028101]
[1763580784049,0.1481746,88962.0,88961.0,0.00016851]
[1763580784262,0.1493726,88962.0,88961.0,0.11270441]
[1763580784465,0.14987802,88962.0,88961.0,0.11270441]
[1763580785057,0.03734342,88962.0,88961.0,0.15825711]
[1763580785765,0.03834342,88962.0,88961.0,0.04572121]
[1763580786356,0.03934342,88962.0,88961.0,0.04572121]
[1763580786863,0.03934342,88962.0,88961.0,0.00016851]
[1763580787059,0.1481885,88951.0,88950.0,0.03456]
[1763580787260,0.6187865,88951.0,88950.0,0.0589227]
[1763580787461,0.6187865,88951.0,88937.0,0.1125658]
[1763580787464,0.1481948,88946.0,88943.0,0.03022858]
[1763580787763,0.03564,88934.0,88933.0,0.05141858]
[1763580787956,0.506238,88934.0,88933.0,0.04382]
[1763580788157,0.506238,88934.0,88928.0,0.04330858]
[1763580788158,0.03564,88931.0,88928.0,0.04330858]
[1763580788357,0.036838,88929.0,88928.0,0.01308]
[1763580788558,0.036838,88929.0,88928.0,0.0586327]
[1763580788854,0.03695476,88929.0,88928.0,0.0586327]
[1763580789052,0.03695476,88929.0,88926.0,0.00028113]
[1763580789053,0.01191476,88929.0,88926.0,0.00028113]
[1763580789264,0.01191476,88929.0,88920.0,0.04024043]
[1763580789265,0.158573,88908.0,88907.0,0.03027829]
[1763580789563,0.04597,88895.0,88894.0,0.04382]
[1763580789767,0.11079803,88895.0,88894.0,0.04382]
[1763580789962,0.11079803,88895.0,88894.0,0.08406043]
[1763580790161,0.11079803,88895.0,88894.0,0.04382]
[1763580790968,0.00219803,88895.0,88894.0,0.04382]
[1763580791362,0.11079803,88895.0,88894.0,0.04382]
[1763580792471,0.00016871,88903.0,88902.0,0.1564306]
[1763580792657,0.00236674,88903.0,88902.0,0.1564306]
[1763580793168,4e-08,88903.0,88902.0,0.1564306]
[1763580793366,0.00011231,88908.0,88907.0,0.1564242]
[1763580793568,0.00011231,88908.0,88907.0,0.15862219]
[1763580794472,0.00084502,88908.0,88907.0,0.15862219]
[1763580794665,0.00011231,88908.0,88907.0,0.15862219]
[1763580794865,0.00016871,88916.0,88915.0,0.1564141]
[1763580795072,0.00016871,88916.0,88915.0,0.15861209]
[1763580795567,0.10864,88923.0,88922.0,0.04382]
[1763580795869,0.10937271,88923.0,88922.0,0.04601799]
[1763580797059,0.11037271,88923.0,88922.0,0.04601799]
[1763580797256,0.15634271,88923.0,88922.0,0.04601799]
[1763580797872,0.00173271,88923.0,88922.0,0.04601799]
[1763580799070,0.001,88923.0,88922.0,0.04601799]
[1763580799567,0.00016871,88931.0,88930.0,0.04382]
[1763580799761,0.00016871,88931.0,88930.0,0.15859309]
[1763580799961,1e-08,88931.0,88930.0,0.15859309]
[1763580800269,0.04597,88950.0,88949.0,0.1563711]
[1763580800573,0.15534271,88950.0,88949.0,0.00219799]
[1763580800775,0.15534271,88950.0,88949.0,0.04601799]
[1763580801068,0.15534271,88950.0,88929.0,0.36736]
[1763580801069,0.01327,88938.0,88926.0,0.1125789]
[1763580801260,0.01327,88938.0,88922.0,0.001]
[1763580801261,0.04597,88935.0,88934.0,0.00219799]
[1763580801462,0.11257,88934.0,88926.0,0.1125797]
[1763580801667,0.1125802,88926.0,88923.0,0.11275191]
[1763580801972,0.01073,88929.0,88923.0,0.1149499]
[1763580801973,0.04670271,88924.0,88923.0,0.1149499]
[1763580802680,0.04670271,88924.0,88923.0,0.1587699]
[1763580803376,0.15634271,88924.0,88923.0,0.0235567]
[1763580803867,0.15634271,88924.0,88923.0,0.0023667]
[1763580804273,0.15634271,88924.0,88923.0,0.1149507]
[1763580804574,0.15634271,88924.0,88923.0,0.0023667]
[1763580805070,0.15534271,88924.0,88923.0,0.0023667]
[1763580805272,0.15634271,88924.0,88923.0,0.0023667]
[1763580805658,0.15534271,88924.0,88923.0,0.0023667]
[1763580805873,0.15634271,88924.0,88923.0,0.0023667]
[1763580806271,0.19527676,88924.0,88923.0,0.0023667]
[1763580806772,0.19527676,88924.0,88923.0,0.0480667]
[1763580807571,0.19527676,88924.0,88923.0,0.00016871]
[1763580808870,0.19527676,88924.0,88923.0,0.0480667]
[1763580809374,0.19527676,88924.0,88923.0,0.0252467]
[1763580809574,0.19527676,88924.0,88923.0,0.00016871]
[1763580809875,0.19527676,88924.0,88923.0,0.0480667]
[1763580810064,0.08663676,88924.0,88923.0,0.0480667]
[1763580810264,0.19527676,88924.0,88923.0,0.0480667]
[1763580811773,0.15634271,88924.0,88923.0,0.0480667]
[1763580812270,0.15634271,88924.0,88923.0,0.0470667]
[1763580813175,0.04770271,88924.0,88923.0,0.0470667]
[1763580813478,0.15634271,88924.0,88923.0,0.0470667]
[1763580813977,0.04770271,88924.0,88923.0,0.0470667]
[1763580814172,0.00173271,88924.0,88923.0,0.0470667]
[1763580814374,0.11037271,88924.0,88923.0,0.0470667]
[1763580814578,0.001,88924.0,88923.0,0.0470667]
[1763580815177,0.00173271,88924.0,88923.0,0.0470667]
[1763580816970,0.001,88924.0,88923.0,0.0470667]
[1763580817769,0.001,88924.0,88923.0,0.10771609]
[1763580818174,0.3608,88938.0,88937.0,0.0447]
[1763580818371,0.36153271,88938.0,88937.0,0.15946419]
[1763580818663,0.00073271,88938.0,88937.0,0.15946419]
[1763580818870,0.00016871,88943.0,88942.0,0.1572599]
[1763580819075,0.00016871,88943.0,88942.0,0.15945789]
[1763580819273,0.3608,88957.0,88956.0,0.1572422]
[1763580819479,0.3608,88957.0,88956.0,0.15944019]
[1763580819676,0.02322101,88966.0,88965.0,0.0447]
[1763580819885,0.04644372,88966.0,88965.0,0.04689799]
[1763580820375,0.00101372,88966.0,88965.0,0.04689799]
[1763580820982,0.04644372,88966.0,88965.0,0.04689799]
[1763580821474,0.04744372,88966.0,88965.0,0.00219799]
[1763580821778,0.04844372,88966.0,88965.0,0.00219799]
[1763580822173,0.04744372,88966.0,88965.0,0.00219799]
[1763580822575,0.04744372,88966.0,88965.0,0.04689799]
[1763580823369,0.04644372,88966.0,88965.0,0.04689799]
[1763580823580,0.00101372,88966.0,88965.0,0.06058799]
[1763580823781,0.00201372,88966.0,88965.0,0.06058799]